[Event "Portugal Open 2020"]
[Site "Lisbon"]
[Date "2020.01.26"]
[Round "2.6"]
[White "Palozza, Christian"]
[Black "Ghazarian, Tigran"]
[Result "1/2-1/2"]
[ECO "E16"]
[WhiteElo "2198"]
[BlackElo "1668"]
[Annotator "NA"]
[PlyCount "139"]
[EventDate "2020.01.25"]
[EventType "swiss"]
[EventCountry "POR"]
[SourceTitle "playchess.com"]
[Source "ChessBase"]
[SourceQuality "1"]
[TimeControl "5400+30"]

1. d4 {[%emt 0:04:55]} Nf6 {[%emt 0:00:00]} 2. c4 {[%emt 0:00:13]} e6 {[%emt 0:00:00]} 3. Nf3 {[%emt 0:00:05]} Bb4+ {[%emt 0:00:00]} 4. Bd2 {[%emt 0:00:04]} Qe7 {[%emt 0:00:04]} 5. g3 {[%emt 0:00:04]} Bxd2+ {[%emt 0:00:10]} 6. Qxd2 {[%emt 0:01:12]} Nc6 {[%emt 0:00:24]} 7. Nc3 {[%emt 0:00:52]} d5 {[%emt 0:00:06]} 8. cxd5 {[%emt 0:08:24]} exd5 {[%emt 0:00:15]} 9. Bg2 {[%emt 0:00:05]} O-O {[%emt 0:00:10]} 10. O-O {[%emt 0:00:02]} a6 {[%emt 0:00:50]} 11. Rac1 {[%emt 0:02:37]} Na7 {[%emt 0:01:54]} 12. Ne5 {[%emt 0:07:29]} c6 {[%emt 0:00:28]} 13. Rfe1 {[%emt 0:01:54]} Nb5 {[%emt 0:01:54]} 14. a3 {[%emt 0:10:10]} Be6 {[%emt 0:03:15]} 15. h3 {[%emt 0:04:45]} Rfe8 {[%emt 0:01:24]} 16. e3 {[%emt 0:08:38]} Rad8 {[%emt 0:02:13]} 17. Nxb5 {[%emt 0:03:57]} axb5 {[%emt 0:00:11]} 18. Qb4 {[%emt 0:00:11]} Ra8 {[%emt 0:12:22]} 19. Qxe7 {[%emt 0:04:46]} Rxe7 {[%emt 0:00:04]} 20. Nd3 {[%emt 0:00:14]} Nd7 {[%emt 0:03:10]} 21. Kh2 {[%emt 0:02:44]} Nb6 {[%emt 0:04:24]} 22. g4 {[%emt 0:01:30]} Kf8 {[%emt 0:00:04]} 23. Kg3 {[%emt 0:01:03]} Nc4 {[%emt 0:01:30]} 24. Re2 {[%emt 0:01:23]} Nd6 {[%emt 0:00:59]} 25. Nb4 {[%emt 0:03:08]} f6 {[%emt 0:02:08]} 26. Bh1 {[%emt 0:08:39]} Bf7 {[%emt 0:00:57]} 27. Bg2 {[%emt 0:01:40]} Bg6 {[%emt 0:01:37]} 28. Bf3 {[%emt 0:00:38]} Rae8 {[%emt 0:06:12]} 29. Rce1 {[%emt 0:00:45]} h6 {[%emt 0:01:06]} 30. Bg2 {[%emt 0:02:40]} Bh7 {[%emt 0:02:36]} 31. f4 {[%emt 0:09:37]} Be4 {[%emt 0:12:30]} 32. Bxe4 {[%emt 0:00:29]} Nxe4+ {[%emt 0:00:05]} 33. Kf3 {[%emt 0:00:11]} g5 {[%emt 0:00:05]} 34. Nd3 {[%emt 0:01:03]} Kg7 {[%emt 0:03:03]} 35. Nf2 {[%emt 0:05:47]} Nd6 {[%emt 0:08:55]} 36. e4 {[%emt 0:00:16]} dxe4+ {[%emt 0:01:02]} 37. Nxe4 {[%emt 0:00:01]} Nc4 {[%emt 0:00:08]} 38. Nc5 {[%emt 0:00:05]} Rxe2 {[%emt 0:01:37]} 39. Rxe2 {[%emt 0:00:28]} Rxe2 {[%emt 0:00:05]} 40. Kxe2 {[%emt 0:00:01]} Nxb2 {[%emt 0:00:20]} 41. fxg5 {[%emt 0:01:06]} fxg5 {[%emt 0:07:52]} 42. Nxb7 {[%emt 0:00:12]} Nc4 {[%emt 0:00:39]} 43. Kd3 {[%emt 0:00:56]} Kf6 {[%emt 0:00:49]} 44. Nd8 {[%emt 0:02:05]} Nxa3 {[%emt 0:02:37]} 45. Nxc6 {[%emt 0:00:01]} Ke6 {[%emt 0:01:12]} 46. Nb4 {[%emt 0:01:56]} Nc4 {[%emt 0:00:50]} 47. Nc6 {[%emt 0:00:56]} Nd6 {[%emt 0:02:29]} 48. Nb4 {[%emt 0:00:29]} Nc8 {[%emt 0:02:33]} 49. Ke4 {[%emt 0:01:13]} Nd6+ {[%emt 0:00:04]} 50. Kd3 {[%emt 0:00:02]} Ne8 {[%emt 0:00:19]} 51. Na6 {[%emt 0:01:09]} Kd6 {[%emt 0:01:52]} 52. Nb4 {[%emt 0:01:34]} Nf6 {[%emt 0:00:15]} 53. Nc2 {[%emt 0:00:42]} Nd5 {[%emt 0:00:15]} 54. Ke4 {[%emt 0:00:12]} Ke6 {[%emt 0:00:13]} 55. Na3 {[%emt 0:01:06]} b4 {[%emt 0:00:43]} 56. Nc4 {[%emt 0:00:35]} Nf4 {[%emt 0:05:13]} 57. h4 {[%emt 0:00:25]} b3 {[%emt 0:00:27]} 58. hxg5 {[%emt 0:00:23]} hxg5 {[%emt 0:00:03]} 59. Nb2 {[%emt 0:00:13]} Nd5 {[%emt 0:00:30]} 60. Na4 {[%emt 0:01:00]} Kd6 {[%emt 0:04:00]} 61. Nb2 {[%emt 0:00:52]} Kc6 {[%emt 0:02:13]} 62. Kf5 {[%emt 0:00:35]} Ne3+ {[%emt 0:01:30]} 63. Kxg5 {[%emt 0:00:20]} Kd5 {[%emt 0:00:04]} 64. Kf4 {[%emt 0:00:19]} Kxd4 {[%emt 0:01:59]} 65. g5 {[%emt 0:00:03]} Nd5+ {[%emt 0:00:39]} 66. Kf5 {[%emt 0:00:35]} Kc3 {[%emt 0:00:05]} 67. Na4+ {[%emt 0:00:17]} Kb4 {[%emt 0:00:04]} 68. Nb2 {[%emt 0:00:13]} Kc3 {[%emt 0:00:06]} 69. Na4+ {[%emt 0:00:03]} Kb4 70. Ke4 1/2-1/2

[Event "Portugal Open 2020"]
[Site "Lisbon"]
[Date "2020.01.26"]
[Round "2.9"]
[White "Asadli, Vugar"]
[Black "Reis, Luis Sousa"]
[Result "1-0"]
[ECO "C54"]
[WhiteElo "2538"]
[BlackElo "2187"]
[Annotator "ChessBase"]
[PlyCount "69"]
[EventDate "2020.01.25"]
[EventType "swiss"]
[EventCountry "POR"]
[SourceTitle "playchess.com"]
[Source "ChessBase"]
[SourceQuality "1"]
[TimeControl "5400+30"]

1. e4 {[%emt 0:00:00]} e5 {[%emt 0:07:25]} 2. Nf3 {[%emt 0:02:05]} Nc6 {[%emt 0:01:35]} 3. Bc4 {[%emt 0:00:42]} Bc5 {[%emt 0:01:40]} 4. c3 {[%emt 0:00:21]} Nf6 {[%emt 0:02:48]} 5. d3 {[%emt 0:00:36]} a6 {[%emt 0:05:13]} 6. Bb3 {[%emt 0:01:22]} d6 {[%emt 0:03:35]} 7. O-O {[%emt 0:00:20]} Ba7 {[%emt 0:01:09]} 8. Be3 {[%emt 0:02:07]} O-O {[%emt 0:06:18]} 9. Nbd2 {[%emt 0:00:14]} Kh8 {[%emt 0:09:55]} 10. h3 {[%emt 0:05:07]} Ng8 {[%emt 0:07:06]} 11. Bxa7 {[%emt 0:04:04]} Rxa7 {[%emt 0:01:22]} 12. d4 {[%emt 0:00:07]} Qe7 {[%emt 0:11:21]} 13. Re1 {[%emt 0:02:05]} Nf6 {[%emt 0:11:06]} 14. Nc4 {[%emt 0:04:49]} Ra8 {[%emt 0:07:56]} 15. Ne3 {[%emt 0:00:45]} Bd7 {[%emt 0:08:19]} 16. Nd5 {[%emt 0:01:57]} Qd8 {[%emt 0:00:15]} 17. dxe5 {[%emt 0:04:48]} dxe5 {[%emt 0:01:26]} 18. Qd2 {[%emt 0:01:28]} Be6 {[%emt 0:03:38]} 19. Rad1 {[%emt 0:00:37]} Qc8 {[%emt 0:04:24]} 20. Qg5 {[%emt 0:02:39]} Nd7 {[%emt 0:00:30]} 21. Ne7 {[%emt 0:00:58]} Qe8 {[%emt 0:02:30]} 22. Bxe6 fxe6 {[%emt 0:00:16]} 23. Nxc6 {[%emt 0:00:37]} bxc6 {[%emt 0:01:02]} 24. Nxe5 {[%emt 0:00:08]} Nxe5 25. Qxe5 {[%emt 0:00:06]} Qf7 {[%emt 0:00:43]} 26. Rd2 {[%emt 0:00:11]} Rad8 {[%emt 0:00:23]} 27. Ree2 {[%emt 0:00:38]} Kg8 {[%emt 0:00:31]} 28. Rd4 {[%emt 0:01:05]} Qf6 {[%emt 0:00:32]} 29. Qxf6 {[%emt 0:00:20]} gxf6 {[%emt 0:00:09]} 30. Red2 {[%emt 0:00:04]} Rxd4 {[%emt 0:01:00]} 31. Rxd4 {[%emt 0:00:05]} Rb8 {[%emt 0:00:43]} 32. b3 {[%emt 0:00:19]} c5 {[%emt 0:00:17]} 33. Rd7 {[%emt 0:00:33]} Rb7 {[%emt 0:00:19]} 34. c4 {[%emt 0:00:15]} a5 {[%emt 0:00:07]} 35. Rd8+ {[%emt 0:00:05]} 1-0

[Event "Portugal Open 2020"]
[Site "Lisbon"]
[Date "2020.01.26"]
[Round "2.10"]
[White "Silich, Yahor"]
[Black "Arizmendi Martinez, Julen Luis"]
[Result "1-0"]
[ECO "B07"]
[WhiteElo "2158"]
[BlackElo "2505"]
[Annotator "ChessBase"]
[PlyCount "81"]
[EventDate "2020.01.25"]
[EventType "swiss"]
[EventCountry "POR"]
[SourceTitle "playchess.com"]
[Source "ChessBase"]
[SourceQuality "1"]
[TimeControl "5400+30"]

1. e4 {[%emt 0:00:00]} d6 {[%emt 0:15:56]} 2. d4 {[%emt 0:00:30]} Nf6 {[%emt 0:00:34]} 3. Nc3 {[%emt 0:00:13]} c6 {[%emt 0:00:17]} 4. a4 {[%emt 0:02:57]} e5 {[%emt 0:12:53]} 5. Nf3 {[%emt 0:03:29]} Qa5 {[%emt 0:02:40]} 6. Bd2 {[%emt 0:12:14]} Bg4 {[%emt 0:06:37]} 7. Ne2 {[%emt 0:16:00]} Qc7 {[%emt 0:02:22]} 8. dxe5 {[%emt 0:01:01]} Nxe4 {[%emt 0:02:14]} 9. exd6 {[%emt 0:06:35]} Bxd6 {[%emt 0:00:41]} 10. Be3 {[%emt 0:01:55]} O-O {[%emt 0:12:13]} 11. h3 {[%emt 0:10:37]} Bxf3 {[%emt 0:02:23]} 12. gxf3 {[%emt 0:00:04]} Nf6 {[%emt 0:00:34]} 13. Qd2 {[%emt 0:07:38]} Rd8 {[%emt 0:12:19]} 14. Bd4 {[%emt 0:08:13]} Nbd7 {[%emt 0:03:24]} 15. O-O-O {[%emt 0:02:19]} Be5 {[%emt 0:03:42]} 16. Rg1 {[%emt 0:04:02]} c5 {[%emt 0:03:52]} 17. Qg5 {[%emt 0:03:08]} g6 {[%emt 0:02:04]} 18. Bxe5 {[%emt 0:02:24]} Qxe5 {[%emt 0:01:08]} 19. f4 {[%emt 0:03:37]} Qe6 {[%emt 0:04:35]} 20. Nc3 {[%emt 0:00:23]} Nb6 {[%emt 0:05:21]} 21. Bg2 {[%emt 0:00:51]} Rd4 {[%emt 0:03:03]} 22. Qxc5 {[%emt 0:02:51]} Rxf4 {[%emt 0:00:26]} 23. Bxb7 {[%emt 0:01:06]} Rf8 {[%emt 0:00:54]} 24. b3 {[%emt 0:07:03]} Qxh3 {[%emt 0:00:49]} 25. a5 Nbd7 {[%emt 0:00:30]} 26. Qe3 {[%emt 0:01:12]} Qf5 {[%emt 0:00:36]} 27. Nd5 {[%emt 0:00:23]} Re4 {[%emt 0:00:49]} 28. Qxe4 {[%emt 0:01:05]} Qxe4 {[%emt 0:00:21]} 29. Nxf6+ {[%emt 0:00:01]} Nxf6 {[%emt 0:00:01]} 30. Bxe4 {[%emt 0:00:01]} Nxe4 {[%emt 0:00:01]} 31. Rd7 {[%emt 0:01:03]} Ra8 {[%emt 0:00:35]} 32. Rgd1 {[%emt 0:00:40]} Kg7 {[%emt 0:00:13]} 33. f3 {[%emt 0:00:12]} Ng5 {[%emt 0:00:07]} 34. f4 {[%emt 0:00:38]} Ne6 {[%emt 0:00:09]} 35. Re7 {[%emt 0:00:30]} Nxf4 {[%emt 0:00:42]} 36. Rdd7 {[%emt 0:00:05]} Rf8 {[%emt 0:00:12]} 37. a6 {[%emt 0:00:29]} h5 {[%emt 0:00:12]} 38. Rxa7 {[%emt 0:00:03]} h4 {[%emt 0:02:15]} 39. Rxf7+ {[%emt 0:00:09]} Rxf7 {[%emt 0:00:01]} 40. Rxf7+ {[%emt 0:00:01]} Kxf7 {[%emt 0:00:08]} 41. a7 {[%emt 0:00:02]} 1-0

[Event "Portugal Open 2020"]
[Site "Lisbon"]
[Date "2020.01.26"]
[Round "2.11"]
[White "Ten Hertog, Hugo"]
[Black "Cambando, Jose"]
[Result "1-0"]
[ECO "B90"]
[WhiteElo "2503"]
[BlackElo "2166"]
[Annotator "ChessBase"]
[PlyCount "69"]
[EventDate "2020.01.25"]
[EventType "swiss"]
[EventCountry "POR"]
[SourceTitle "playchess.com"]
[Source "ChessBase"]
[SourceQuality "1"]
[TimeControl "5400+30"]

1. e4 {[%emt 0:00:00]} c5 {[%emt 0:00:53]} 2. Nf3 {[%emt 0:00:00]} d6 {[%emt 0:00:10]} 3. d4 {[%emt 0:00:00]} cxd4 {[%emt 0:00:08]} 4. Nxd4 {[%emt 0:00:00]} Nf6 {[%emt 0:00:06]} 5. Nc3 {[%emt 0:00:00]} a6 {[%emt 0:00:06]} 6. h3 {[%emt 0:02:35]} Nc6 {[%emt 0:02:02]} 7. g4 {[%emt 0:00:28]} Nxd4 {[%emt 0:01:02]} 8. Qxd4 {[%emt 0:00:05]} e5 {[%emt 0:00:06]} 9. Qd3 {[%emt 0:03:24]} Be6 {[%emt 0:00:16]} 10. f4 {[%emt 0:03:25]} exf4 {[%emt 0:00:52]} 11. Bxf4 {[%emt 0:00:08]} d5 {[%emt 0:01:03]} 12. O-O-O {[%emt 0:15:20]} dxe4 {[%emt 0:00:31]} 13. Nxe4 {[%emt 0:04:52]} Qxd3 {[%emt 0:00:44]} 14. Nxf6+ {[%emt 0:04:41]} gxf6 {[%emt 0:01:05]} 15. Rxd3 {[%emt 0:05:13]} Rd8 {[%emt 0:00:20]} 16. Rxd8+ {[%emt 0:00:54]} Kxd8 {[%emt 0:00:02]} 17. Bg2 {[%emt 0:00:57]} Kc8 {[%emt 0:00:09]} 18. Rd1 {[%emt 0:04:46]} h5 {[%emt 0:00:58]} 19. Rd3 {[%emt 0:06:16]} Bh6 {[%emt 0:00:30]} 20. Rc3+ {[%emt 0:01:20]} Kd8 {[%emt 0:01:11]} 21. Bxh6 {[%emt 0:00:45]} Rxh6 {[%emt 0:00:02]} 22. Bxb7 {[%emt 0:02:08]} hxg4 {[%emt 0:00:16]} 23. hxg4 {[%emt 0:00:05]} a5 {[%emt 0:00:23]} 24. Bf3 {[%emt 0:04:47]} Rh3 {[%emt 0:01:51]} 25. Kd2 {[%emt 0:12:27]} Rh2+ {[%emt 0:05:33]} 26. Ke3 {[%emt 0:02:20]} Bxa2 {[%emt 0:01:45]} 27. b3 {[%emt 0:00:31]} Bb1 {[%emt 0:02:07]} 28. Be4 {[%emt 0:01:01]} Kd7 {[%emt 0:01:22]} 29. Rc4 {[%emt 0:04:33]} Kd6 {[%emt 0:00:23]} 30. Kd4 {[%emt 0:00:32]} Rd2+ {[%emt 0:00:16]} 31. Kc3 {[%emt 0:00:30]} Rd1 {[%emt 0:00:14]} 32. Rd4+ {[%emt 0:02:02]} Rxd4 {[%emt 0:00:02]} 33. Kxd4 {[%emt 0:00:08]} a4 {[%emt 0:00:45]} 34. bxa4 {[%emt 0:00:20]} Ba2 {[%emt 0:00:33]} 35. a5 {[%emt 0:00:10] Kd5+} 1-0

[Event "Portugal Open 2020"]
[Site "Lisbon"]
[Date "2020.01.26"]
[Round "2.12"]
[White "Santos, Antonio P"]
[Black "Spraggett, Kevin"]
[Result "1/2-1/2"]
[ECO "A61"]
[WhiteElo "2152"]
[BlackElo "2501"]
[Annotator "ChessBase"]
[PlyCount "96"]
[EventDate "2020.01.25"]
[EventType "swiss"]
[EventCountry "POR"]
[SourceTitle "playchess.com"]
[Source "ChessBase"]
[SourceQuality "1"]
[TimeControl "5400+30"]

1. d4 {[%emt 1:15:22]} Nf6 {[%emt 1:15:21]} 2. c4 {[%emt 0:00:26]} e6 {[%emt 0:00:26]} 3. Nc3 {[%emt 0:00:24]} c5 {[%emt 0:00:00]} 4. d5 {[%emt 0:00:00]} exd5 {[%emt 0:00:00]} 5. cxd5 {[%emt 0:00:00]} d6 {[%emt 0:00:00]} 6. Nf3 {[%emt 0:00:00]} g6 {[%emt 0:00:00]} 7. e4 {[%emt 0:00:00]} a6 {[%emt 0:00:00]} 8. a4 {[%emt 0:00:00]} Bg4 {[%emt 0:00:00]} 9. Be2 {[%emt 0:00:00]} Bxf3 {[%emt 0:00:00]} 10. Bxf3 {[%emt 0:00:00]} Nbd7 {[%emt 0:00:00]} 11. O-O {[%emt 0:00:00]} Bg7 {[%emt 0:00:00]} 12. Bf4 {[%emt 0:00:00]} Qe7 {[%emt 0:00:00]} 13. a5 {[%emt 0:00:00]} O-O {[%emt 0:00:00]} 14. Qb3 {[%emt 0:00:00]} Rab8 {[%emt 0:00:00]} 15. Rfe1 {[%emt 0:00:00]} h5 {[%emt 0:00:00]} 16. Na4 {[%emt 0:00:00]} Nh7 {[%emt 0:00:00]} 17. h3 {[%emt 0:00:00]} Rfe8 {[%emt 0:00:00]} 18. Rab1 {[%emt 0:00:00]} Bd4 {[%emt 0:00:00]} 19. Nb6 Nxb6 {[%emt 0:00:00]} 20. Qxb6 {[%emt 0:00:12]} Be5 {[%emt 0:00:00]} 21. Bxe5 Qxe5 {[%emt 0:00:00]} 22. b4 {[%emt 0:17:57]} c4 {[%emt 0:00:00]} 23. b5 {[%emt 0:00:20]} Rbc8 {[%emt 0:00:00]} 24. Qxb7 {[%emt 0:01:43]} axb5 25. Qxb5 Ng5 {[%emt 0:00:00]} 26. Re3 {[%emt 0:02:50]} Rc5 {[%emt 0:00:00]} 27. Qb6 {[%emt 0:01:13]} c3 {[%emt 0:00:00]} 28. a6 {[%emt 0:00:33]} c2 {[%emt 0:00:00]} 29. Rc1 {[%emt 0:00:11]} Nxf3+ {[%emt 0:00:00]} 30. Rxf3 Qe7 {[%emt 0:00:00]} 31. a7 {[%emt 0:03:02]} Ra8 {[%emt 0:00:00]} 32. Ra3 {[%emt 0:00:54]} Qxe4 {[%emt 0:00:00]} 33. Qb8+ {[%emt 0:00:36]} Rc8 {[%emt 0:00:00]} 34. Qxc8+ {[%emt 0:00:02]} Rxc8 {[%emt 0:00:00]} 35. a8=Q Rxa8 {[%emt 0:00:00]} 36. Rxa8+ {[%emt 0:00:11]} Kg7 {[%emt 0:00:00]} 37. Rc8 {[%emt 0:00:11]} Qxd5 {[%emt 0:00:00]} 38. R8xc2 {[%emt 0:00:08]} h4 {[%emt 0:00:00]} 39. Re1 {[%emt 0:00:36]} g5 {[%emt 0:00:00]} 40. Ree2 {[%emt 0:00:34]} f6 {[%emt 0:00:00]} 41. Rcd2 {[%emt 0:02:07]} Qc5 {[%emt 0:00:00]} 42. Rc2 {[%emt 0:00:04]} Qb4 {[%emt 0:00:00]} 43. Rb2 {[%emt 0:00:22]} Qa3 {[%emt 0:00:00]} 44. Rbd2 {[%emt 0:00:47]} Kg6 {[%emt 0:00:00]} 45. Kh2 {[%emt 0:00:11]} Qb4 {[%emt 0:00:00]} 46. Rd3 {[%emt 0:00:54]} Qf4+ {[%emt 0:00:00]} 47. g3 Qf5 {[%emt 0:00:00]} 48. Red2 {[%emt 0:00:58]} Qe5 {[%emt 0:00:53]} 1/2-1/2

[Event "Portugal Open 2020"]
[Site "Lisbon"]
[Date "2020.01.26"]
[Round "2.13"]
[White "Jaracz, Pawel"]
[Black "Tscharotschkin, Michael"]
[Result "1/2-1/2"]
[WhiteElo "2466"]
[BlackElo "2156"]
[Annotator "ChessBase"]
[PlyCount "30"]
[EventDate "2020.01.25"]
[EventType "swiss"]
[EventCountry "POR"]
[SourceTitle "playchess.com"]
[Source "ChessBase"]
[SourceQuality "1"]
[TimeControl "5400+30"]

1. Nf3 {[%emt 0:00:32]} d5 {[%emt 0:09:15]} 2. c4 {[%emt 0:00:17]} e6 {[%emt 0:00:20]} 3. e3 {[%emt 0:02:10]} c6 {[%emt 0:00:23]} 4. Nc3 {[%emt 0:02:57]} f5 {[%emt 0:00:41]} 5. Qc2 {[%emt 0:01:10]} Nf6 {[%emt 0:00:22]} 6. b3 {[%emt 0:00:18]} Bd6 {[%emt 0:02:41]} 7. Bb2 {[%emt 0:00:35]} O-O {[%emt 0:00:36]} 8. Be2 {[%emt 0:03:14]} Ne4 {[%emt 0:05:38]} 9. d3 {[%emt 0:04:53]} Nxc3 {[%emt 0:00:27]} 10. Bxc3 {[%emt 0:03:44]} Qe7 {[%emt 0:16:04]} 11. e4 {[%emt 0:02:01]} dxe4 {[%emt 0:05:36]} 12. dxe4 {[%emt 0:00:17]} e5 {[%emt 0:02:29]} 13. O-O {[%emt 0:13:40]} Na6 {[%emt 0:07:39]} 14. Rad1 {[%emt 0:07:07]} Nc5 {[%emt 0:04:50]} 15. Bd3 {[%emt 0:14:23]} fxe4 {[%emt 0:02:43]} 1/2-1/2

[Event "Portugal Open 2020"]
[Site "Lisbon"]
[Date "2020.01.26"]
[Round "2.14"]
[White "Borges, Guilherme Deola"]
[Black "Stella, Andrea"]
[Result "1-0"]
[ECO "D85"]
[WhiteElo "2134"]
[BlackElo "2465"]
[Annotator "ChessBase"]
[PlyCount "101"]
[EventDate "2020.01.25"]
[EventType "swiss"]
[EventCountry "POR"]
[SourceTitle "playchess.com"]
[Source "ChessBase"]
[SourceQuality "1"]
[TimeControl "5400+30"]

1. d4 {[%emt 0:00:00]} Nf6 {[%emt 0:10:05]} 2. c4 {[%emt 0:00:00]} g6 {[%emt 0:00:06]} 3. Nc3 {[%emt 0:00:00]} d5 {[%emt 0:00:06]} 4. cxd5 {[%emt 0:00:39]} Nxd5 {[%emt 0:00:04]} 5. Bd2 {[%emt 0:00:20]} Nb6 {[%emt 0:00:18]} 6. e3 {[%emt 0:00:42]} Bg7 {[%emt 0:00:07]} 7. Nf3 {[%emt 0:03:56]} O-O {[%emt 0:00:51]} 8. Be2 {[%emt 0:05:22]} Nc6 {[%emt 0:01:13]} 9. O-O {[%emt 0:02:05]} e5 {[%emt 0:00:14]} 10. dxe5 {[%emt 0:02:10]} Nxe5 {[%emt 0:00:21]} 11. Nxe5 {[%emt 0:02:33]} Bxe5 {[%emt 0:00:03]} 12. Qc2 {[%emt 0:00:49]} Qe7 {[%emt 0:03:22]} 13. e4 {[%emt 0:11:32]} c6 {[%emt 0:07:34]} 14. f4 {[%emt 0:08:26]} Bd4+ {[%emt 0:17:37]} 15. Kh1 {[%emt 0:00:10]} f5 {[%emt 0:03:58]} 16. Bd3 {[%emt 0:09:37]} Be6 {[%emt 0:05:57]} 17. exf5 {[%emt 0:07:55]} Bxf5 {[%emt 0:03:04]} 18. Bxf5 {[%emt 0:01:03]} Rxf5 {[%emt 0:01:39]} 19. Rae1 {[%emt 0:03:58]} Qh4 {[%emt 0:14:03]} 20. Ne4 {[%emt 0:11:35]} Nd5 {[%emt 0:11:43]} 21. Qb3 {[%emt 0:02:35]} Bb6 {[%emt 0:05:30]} 22. g3 {[%emt 0:04:42]} Qd8 {[%emt 0:07:54]} 23. Bc3 {[%emt 0:00:40]} Rf7 {[%emt 0:01:04]} 24. Rd1 {[%emt 0:03:24]} h6 {[%emt 0:01:39]} 25. Be5 {[%emt 0:04:15]} Kh7 {[%emt 0:01:07]} 26. g4 {[%emt 0:00:29]} Qe7 {[%emt 0:02:27]} 27. Ng5+ {[%emt 0:03:26]} Kg8 {[%emt 0:00:12]} 28. Nxf7 {[%emt 0:00:24]} Qxf7 {[%emt 0:00:02]} 29. Qh3 {[%emt 0:03:45]} Qf8 {[%emt 0:01:20]} 30. g5 {[%emt 0:01:18]} Re8 {[%emt 0:00:28]} 31. gxh6 {[%emt 0:00:47]} Kh7 {[%emt 0:00:11]} 32. f5 {[%emt 0:01:19]} g5 {[%emt 0:00:25]} 33. Rde1 {[%emt 0:03:05]} Qf7 {[%emt 0:00:37]} 34. f6 {[%emt 0:01:22]} Ne3 {[%emt 0:00:53]} 35. Rxe3 {[%emt 0:00:42]} Bxe3 {[%emt 0:00:01]} 36. Qf5+ {[%emt 0:02:20]} Kh8 {[%emt 0:00:39]} 37. Rf3 {[%emt 0:00:30]} Bf4 {[%emt 0:01:01]} 38. Bxf4 {[%emt 0:00:33]} gxf4 {[%emt 0:00:18]} 39. Qxf4 {[%emt 0:00:24]} Re1+ {[%emt 0:00:37]} 40. Kg2 {[%emt 0:00:17]} Qg6+ {[%emt 0:00:25]} 41. Qg3 {[%emt 0:00:19]} Re2+ {[%emt 0:00:39]} 42. Kf1 {[%emt 0:00:21]} Qxg3 {[%emt 0:00:33]} 43. hxg3 {[%emt 0:01:04]} Re8 {[%emt 0:00:02]} 44. g4 {[%emt 0:00:16]} Kh7 {[%emt 0:00:11]} 45. f7 {[%emt 0:00:11]} Rf8 {[%emt 0:00:01]} 46. Rf6 {[%emt 0:00:07]} a5 {[%emt 0:00:14]} 47. g5 {[%emt 0:00:12]} b5 {[%emt 0:00:06]} 48. Ke2 {[%emt 0:00:16]} c5 {[%emt 0:00:06]} 49. Kf3 {[%emt 0:00:28]} c4 {[%emt 0:00:06]} 50. Kg4 {[%emt 0:00:13]} b4 {[%emt 0:00:08]} 51. Kh5 {[%emt 0:00:09]} 1-0

[Event "Portugal Open 2020"]
[Site "Lisbon"]
[Date "2020.01.26"]
[Round "2.15"]
[White "Haldorsen, Benjamin"]
[Black "Garcia Dorado, Alberto"]
[Result "1-0"]
[ECO "C00"]
[WhiteElo "2463"]
[BlackElo "2152"]
[Annotator "ChessBase"]
[PlyCount "64"]
[EventDate "2020.01.25"]
[EventType "swiss"]
[EventCountry "POR"]
[SourceTitle "playchess.com"]
[Source "ChessBase"]
[SourceQuality "1"]
[TimeControl "5400+30"]

1. e4 {[%emt 0:00:07]} e6 {[%emt 0:06:00]} 2. d4 {[%emt 0:00:29]} d5 {[%emt 0:00:11]} 3. Bd3 {[%emt 0:00:16]} dxe4 {[%emt 0:00:08]} 4. Bxe4 {[%emt 0:00:12]} Nf6 {[%emt 0:00:04]} 5. Bf3 {[%emt 0:00:07]} c5 {[%emt 0:00:22]} 6. Ne2 {[%emt 0:00:07]} Nc6 {[%emt 0:00:05]} 7. Be3 {[%emt 0:00:16]} cxd4 {[%emt 0:00:29]} 8. Nxd4 {[%emt 0:00:20]} Ne5 {[%emt 0:00:57]} 9. Nc3 {[%emt 0:00:28]} a6 {[%emt 0:00:20]} 10. Qe2 {[%emt 0:00:04]} Nxf3+ {[%emt 0:00:06]} 11. gxf3 {[%emt 0:00:04]} Bb4 {[%emt 0:16:04]} 12. O-O-O {[%emt 0:07:26]} Qe7 {[%emt 0:02:02]} 13. Ne4 {[%emt 0:12:48]} e5 {[%emt 0:05:05]} 14. Nb3 {[%emt 0:08:57]} Nxe4 {[%emt 0:04:59]} 15. fxe4 {[%emt 0:00:12]} O-O {[%emt 0:03:14]} 16. Rhg1 {[%emt 0:01:13]} Re8 {[%emt 0:12:45]} 17. a3 {[%emt 0:18:31]} Bd6 {[%emt 0:01:59]} 18. Qd3 {[%emt 0:03:28]} Bc7 {[%emt 0:00:35]} 19. Qc3 {[%emt 0:03:49]} f6 {[%emt 0:07:07]} 20. Nc5 {[%emt 0:05:57]} Kh8 {[%emt 0:06:19]} 21. h4 {[%emt 0:02:29]} Bd6 {[%emt 0:08:33]} 22. h5 {[%emt 0:01:41]} Bxc5 {[%emt 0:02:46]} 23. Bxc5 {[%emt 0:00:40]} Qf7 {[%emt 0:00:31]} 24. h6 {[%emt 0:10:35]} g6 {[%emt 0:05:25]} 25. f4 {[%emt 0:01:14]} exf4 {[%emt 0:01:09]} 26. Rgf1 {[%emt 0:02:39]} Kg8 {[%emt 0:05:49]} 27. Rxf4 {[%emt 0:00:46]} Be6 {[%emt 0:03:18]} 28. Rxf6 {[%emt 0:04:27]} Qc7 {[%emt 0:02:41]} 29. Rg1 {[%emt 0:00:28]} Bf7 {[%emt 0:00:35]} 30. Rgf1 {[%emt 0:00:22]} Re5 {[%emt 0:01:18]} 31. Rxf7 {[%emt 0:00:11]} Qxc5 {[%emt 0:00:18]} 32. Qxc5 {[%emt 0:00:31]} Rxc5 {[%emt 0:00:07]} 1-0